{"text_format":"1","workbook":"xlsx","n_sheets":3,"sheets":["Auxiliaires","Unité de regroupement","Titre d'emploi"],"not_rendered":{"charts":0,"images":1,"macros":1,"external_links":0,"defined_names":4,"comments":1,"pivot_tables":0},"unopened":[],"bounds":{"document_bytes":16777216,"sheet_cells":100000,"rows_first":2000,"rows_last":500,"rows_between":2000,"halvings":0,"cell_chars":16384,"cell_head_chars":4096},"cells_cut":0,"cells_raw":0,"read":"whole","date_system":"1900"}

{"sheet":"Auxiliaires","index":0,"n_rows":133,"n_cols":85,"rows_kept":133,"cut":false,"hidden":false,"merged":[[83,56,83,60],[131,79,131,86],[124,77,124,85],[123,33,123,41],[100,47,100,54],[64,47,64,54],[64,57,64,60],[64,62,64,63],[64,72,64,82],[66,47,66,54],[66,57,66,60],[66,62,66,63],[66,72,66,82],[68,47,68,54],[68,57,68,60],[68,62,68,63],[68,72,68,82],[70,47,70,54],[70,57,70,60],[70,62,70,63],[87,81,87,82],[87,84,87,85],[118,77,118,85],[89,35,89,39],[89,41,89,45],[11,1,11,12],[11,20,11,28],[11,33,11,40],[11,48,11,55],[13,1,13,12],[13,20,13,27],[13,33,13,40],[13,48,13,55],[85,29,85,33],[85,35,85,39],[85,41,85,45],[80,41,80,45],[83,6,83,27],[83,29,83,33],[83,35,83,39],[80,47,80,54],[50,1,50,5],[55,1,55,4],[77,47,77,51],[60,20,60,30],[57,35,57,39],[77,20,77,24],[64,36,64,39],[66,36,66,39],[85,84,85,85],[90,20,90,30],[87,56,87,60],[87,62,87,65],[89,77,89,79],[89,81,89,82],[89,84,89,85],[87,47,87,54],[89,6,89,27],[89,29,89,33],[85,6,85,27],[89,47,89,54],[87,67,87,71],[87,73,87,75],[85,81,85,82],[24,81,24,83],[81,41,81,45],[81,47,81,54],[81,56,81,60],[83,41,83,45],[0,77,0,85],[6,78,6,85],[22,81,22,83],[23,81,23,83],[59,84,59,85],[81,80,81,83],[81,84,81,85],[80,77,80,79],[81,77,81,79],[55,84,55,85],[4,69,4,86],[57,84,57,85],[50,77,50,79],[6,69,6,76],[21,63,21,85],[59,81,59,82],[70,72,70,82],[81,61,81,65],[2,16,2,72],[51,84,51,85],[50,6,50,21],[50,47,50,54],[53,84,53,85],[53,81,53,82],[47,29,47,33],[51,41,51,45],[47,77,47,81],[51,56,51,60],[47,67,47,71],[53,56,53,60],[51,47,51,54],[50,41,50,45],[53,35,53,39],[51,80,51,83],[53,77,53,79],[51,77,51,79],[25,81,25,83],[73,9,73,16],[73,21,73,28],[55,41,55,45],[57,47,57,54],[55,56,55,60],[57,29,57,33],[57,73,57,75],[57,77,57,79],[55,81,55,82],[55,77,55,79],[43,21,43,28],[43,53,43,60],[50,29,50,33],[53,29,53,33],[53,41,53,45],[34,37,34,40],[38,30,38,60],[38,80,38,85],[47,39,47,43],[47,47,47,51],[53,47,53,54],[53,73,53,75],[59,77,59,79],[6,36,6,66],[22,36,22,38],[34,64,34,71],[53,62,53,65],[24,57,24,59],[21,1,21,61],[55,47,55,54],[43,9,43,16],[43,67,43,74],[38,66,38,73],[22,19,22,21],[23,19,23,21],[24,19,24,21],[25,19,25,21],[23,36,23,38],[24,36,24,38],[22,57,22,59],[55,29,55,33],[55,35,55,39],[55,62,55,65],[55,67,55,71],[47,57,47,61],[53,1,53,4],[55,73,55,75],[0,19,0,32],[1,0,1,86],[57,56,57,60],[34,1,34,32],[34,49,34,56],[6,1,6,34],[23,57,23,59],[50,35,50,40],[62,72,62,82],[53,67,53,71],[57,62,57,65],[57,67,57,71],[57,6,57,27],[50,63,50,68],[47,20,47,24],[51,35,51,40],[59,35,59,39],[55,6,55,27],[47,1,47,5],[47,15,47,16],[47,8,47,12],[53,6,53,27],[51,61,51,65],[51,29,51,33],[131,19,131,26],[131,37,131,38],[123,1,123,30],[124,33,124,41],[129,1,129,30],[87,6,87,27],[87,29,87,33],[87,35,87,39],[87,41,87,45],[102,0,102,8],[118,45,118,74],[102,9,102,85],[128,1,128,30],[128,45,128,73],[124,1,124,30],[124,45,124,74],[128,77,128,85],[129,45,129,74],[127,33,127,41],[103,1,103,85],[89,56,89,60],[121,1,121,85],[117,45,117,74],[128,33,128,41],[127,1,127,30],[125,45,125,74],[125,1,125,30],[127,45,127,74],[59,29,59,33],[89,67,89,71],[89,73,89,75],[89,62,89,65],[80,29,80,33],[77,39,77,43],[80,35,80,40],[81,29,81,33],[81,35,81,40],[80,63,80,68],[77,29,77,33],[59,6,59,27],[77,57,77,61],[62,47,62,54],[73,53,73,60],[59,41,59,45],[89,1,89,4],[85,47,85,54],[85,56,85,60],[68,36,68,39],[132,71,132,86],[80,1,80,5],[83,1,83,4],[85,1,85,4],[87,1,87,4],[80,6,80,21],[59,1,59,4],[57,1,57,4],[83,47,83,54],[77,1,77,5],[77,8,77,12],[77,15,77,16],[57,41,57,45],[83,84,83,85],[100,62,100,63],[100,72,100,82],[87,77,87,79],[59,47,59,54],[73,67,73,74],[127,77,127,85],[77,67,77,71],[83,81,83,82],[57,81,57,82],[59,56,59,60],[59,62,59,65],[59,67,59,71],[59,73,59,75],[77,77,77,81],[85,67,85,71],[85,73,85,75],[85,77,85,79],[83,62,83,65],[85,62,85,65],[83,67,83,71],[83,73,83,75],[83,77,83,79],[119,45,119,74],[123,45,123,74],[92,72,92,82],[100,57,100,60],[123,77,123,85],[117,77,117,85],[94,36,94,39],[96,36,96,39],[98,36,98,39],[98,47,98,54],[98,57,98,60],[98,62,98,63],[98,72,98,82],[94,47,94,54],[94,57,94,60],[94,62,94,63],[94,72,94,82],[96,47,96,54],[96,57,96,60],[96,62,96,63],[96,72,96,82],[92,47,92,54]]}
[null,null,null,null,null,null,null,null,null,null,null,null,null,null,null,null,null,null,null,null,null,null,null,null,null,null,null,null,null,null,null,null,null,null,null,null,null,null,null,null,null,null,null,null,null,null,null,null,null,null,null,null,null,null,null,null,null,null,null,null,null,null,null,null,null,null,null,null,null,null,null,null,null,null,null,null,null,"JOURNALIER"]
["DEMANDE DE RÉMUNÉRATION"]
[null,null,null,null,null,null,null,null,null,null,null,null,null,null,null,null,"AUXILIAIRES À LA RECHERCHE"]
[]
[null,"NOM",null,null,null,null,null,null,null,null,null,null,null,null,null,null,null,null,null,null,null,null,null,null,null,null,null,null,null,null,null,null,null,null,null,null,"PRÉNOM",null,null,null,null,null,null,null,null,null,null,null,null,null,null,null,null,null,null,null,null,null,null,null,null,null,null,null,null,null,null,null,null,"MATRICULE (obligatoire)"]
[null,null,null,null,null,null,null,null,null,null,null,null,null,null,null,null,null,null,null,null,null,null,null,null,null,null,null,null,null,null,null,null,null,null,null,null,null,null,null,null,null,null,null,null,null,null,null,null,null,null,null,null,null,null,null,null,null,null,null,null,null,null,null,null,null,null,null,null,null,null,"Employé",null,null,null,null,null,null,null,null,"Étudiant"]
[]
[]
[]
[null,"ETUDIANT ÉTRANGER"]
[]
[null,"PERMIS DE TRAVAIL",null,null,null,null,null,null,null,null,null,null,null,null,null,null,null,null,null,null,"DATE DE DÉBUT",null,null,null,null,null,null,null,null,null,null,null,null,"DATE DE FIN",null,null,null,null,null,null,null,null,null,null,null,null,null,null,"FIN NAS"]
[]
[]
[]
[]
[]
[]
[]
[]
[null,"TITRE D'EMPLOI"]
[null,"AUXILIAIRES DE RECHERCHE"]
[null,"Étudiant au 1er cycle",null,null,null,null,null,null,null,null,null,null,null,null,null,null,"TAG:",null,null,1070]
[null,"Nouveau diplômé B. Ing.",null,null,null,null,null,null,null,null,null,null,null,null,null,null,"TAG:",null,null,1071]
[null,"Étudiant au 2e cycle",null,null,null,null,null,null,null,null,null,null,null,null,null,null,"TAG:",null,null,1072]
[null,"Étudiant au 3e cyle",null,null,null,null,null,null,null,null,null,null,null,null,null,null,"TAG:",null,null,1073]
[]
[null,"CYCLE DE L'ÉTUDIANT",null,null,null,null,null,null,null,null,null,null,null,null,null,null,null,null,null,null,null,null,null,null,null,null,null,null,null,null,null,null,null,null,null,null,null,null,null,null,null,null,null,null,null,null,null,null,null,null,null,null,null,null,null,null,null,null,null,null,null,null,null,null,null,null,"OBTENU",null,null,null,null,null,"EN COURS"]
[null,null,null,null,null,null,null,null,null,null,null,null,null,null,null,null,null,null,null,null,null,null,null,null,null,null,null,null,null,null,null,null,null,null,null,null,null,null,null,null,null,null,null,null,null,null,null,null,null,null,null,null,null,null,null,"BACCALAURÉAT"]
[null,null,null,null,null,null,null,null,null,null,null,null,null,null,null,null,null,null,null,null,null,null,null,null,null,null,null,null,null,null,null,null,null,null,null,null,null,null,null,null,null,null,null,null,null,null,null,null,null,null,null,null,null,null,null,"MAITRISE"]
[null,null,null,null,null,null,null,null,null,null,null,null,null,null,null,null,null,null,null,null,null,null,null,null,null,null,null,null,null,null,null,null,null,null,null,null,null,null,null,null,null,null,null,null,null,null,null,null,null,null,null,null,null,null,null,"DOCTORAT"]
[]
[]
[null,"CENTRE, DÉPARTEMENT, INSTITUT ou SERVICE",null,null,null,null,null,null,null,null,null,null,null,null,null,null,null,null,null,null,null,null,null,null,null,null,null,null,null,null,null,null,null,"UNITÉ ADMINISTRATIVE",null,null,null,null,null,null,null,null,null,null,null,null,null,"SEMAINE DÉBUT D'EMPLOI",null,null,null,null,null,null,null,null,null,null,null,null,null,null,"SEMAINE FIN D'EMPLOI",null,null,null,null,null,null,null,null,null,null,null,null,null,null,null,"TRIMESTRE"]
[null,null,null,null,null,null,null,null,null,null,null,null,null,null,null,null,null,null,null,null,null,null,null,null,null,null,null,null,null,null,null,null,null,null,null,null,null,null,null,null,null,null,null,null,null,null,null,null,null,null,null,null,null,null,null,null,null,null,null,null,null,null,null,null,null,null,null,null,null,null,null,null,null,null,null,null,null,"A",null,null,"H",null,null,"E"]
[]
[]
[null,null,null,null,null,null,null,null,null,null,null,null,null,null,null,null,null,null,null,null,null,null,null,null,null,null,null,null,null,null,"TITRE D'EMPLOI",null,null,null,null,null,null,null,null,null,null,null,null,null,null,null,null,null,null,null,null,null,null,null,null,null,null,null,null,null,null,null,null,"UNITÉ DE REGROUPEMENT",null,null,null,null,null,null,null,null,null,null,null,null,null,null,null,null,null,null,"STATUT"]
[]
[]
[]
[]
[null,null,null,null,null,null,null,null,null,null,"DIMANCHE",null,null,null,null,null,null,null,null,null,null,null,null,"SAMEDI"]
[null,"SEMAINE DU",null,null,null,null,null,null,null,null,null,null,null,null,null,null,null,null,"AU"]
[]
[]
[null,"No Période",null,null,null,null,null,null,"NB.HRES",null,null,null,null,null,"SEM.",null,null,null,null,null,"DIMANCHE",null,null,null,null,null,null,null,null,"LUNDI",null,null,null,null,null,null,null,null,null,"MARDI",null,null,null,null,null,null,null,"MERCREDI",null,null,null,null,null,null,null,null,null,"JEUDI",null,null,null,null,null,null,null,null,null,"VENDREDI",null,null,null,null,null,null,null,null,null,"SAMEDI"]
[null,null,null,null,null,null,null,null,{"$f":"U48+AD48+AN48+AV48+BF48+BP48+BZ48","v":0}]
[]
[]
[null,"TAG",null,null,null,null,"TITRE DU COURS",null,null,null,null,null,null,null,null,null,null,null,null,null,null,null,null,null,null,null,null,null,null,"NO. DU",null,null,null,null,null,"NOMBRE",null,null,null,null,null,"TAUX",null,null,null,null,null,"MONTANT",null,null,null,null,null,null,null,null,null,null,null,null,null,null,null,null,null,null,null,null,null,null,null,null,null,null,null,null,null,"UNITÉ"]
[null,null,null,null,null,null,null,null,null,null,null,null,null,null,null,null,null,null,null,null,null,null,null,null,null,null,null,null,null,"COURS",null,null,null,null,null,"HRES/SEM.",null,null,null,null,null,"HORAIRE",null,null,null,null,null,"TOTAL",null,null,null,null,null,null,null,null,"UBR",null,null,null,null,"COMPTE",null,null,null,null,"FINANCEMENT",null,null,null,null,null,null,"CBS",null,null,null,"ADM.",null,null,"FONDS",null,null,null,"%"]
[]
[null,null,null,null,null,null,null,null,null,null,null,null,null,null,null,null,null,null,null,null,null,null,null,null,null,null,null,null,null,null,null,null,null,null,null,null,null,null,null,null,null,{"$f":"IF(ISNA(VLOOKUP(B54,donnees_Auxiliaires,2,FALSE)),\" \",VLOOKUP(B54,donnees_Auxiliaires,2,FALSE))","v":" "},null,null,null,null,null,{"$f":"IF(AP54=\" \",0,AJ54*AP54)","v":0}]
[]
[null,null,null,null,null,null,null,null,null,null,null,null,null,null,null,null,null,null,null,null,null,null,null,null,null,null,null,null,null,null,null,null,null,null,null,null,null,null,null,null,null,{"$f":"IF(ISNA(VLOOKUP(B56,donnees_Auxiliaires,2,FALSE)),\" \",VLOOKUP(B56,donnees_Auxiliaires,2,FALSE))","v":" "},null,null,null,null,null,{"$f":"IF(AP56=\" \",0,AJ56*AP56)","v":0}]
[]
[null,null,null,null,null,null,null,null,null,null,null,null,null,null,null,null,null,null,null,null,null,null,null,null,null,null,null,null,null,null,null,null,null,null,null,null,null,null,null,null,null,{"$f":"IF(ISNA(VLOOKUP(B58,donnees_Auxiliaires,2,FALSE)),\" \",VLOOKUP(B58,donnees_Auxiliaires,2,FALSE))","v":" "},null,null,null,null,null,{"$f":"IF(AP58=\" \",0,AJ58*AP58)","v":0}]
[]
[null,null,null,null,null,null,null,null,null,null,null,null,null,null,null,null,null,null,null,null,null,null,null,null,null,null,null,null,null,null,null,null,null,null,null,null,null,null,null,null,null,{"$f":"IF(ISNA(VLOOKUP(B60,donnees_Auxiliaires,2,FALSE)),\" \",VLOOKUP(B60,donnees_Auxiliaires,2,FALSE))","v":" "},null,null,null,null,null,{"$f":"IF(AP60=\" \",0,AJ60*AP60)","v":0}]
[null,null,null,null,null,null,null,null,null,null,null,null,null,null,null,null,null,null,null,null,{"$f":"IF(I61=\" \",\" \",I61*O61)","v":0}]
[]
[null,null,null,null,null,null,null,null,null,null,null,null,null,null,null,null,null,null,null,null,null,null,null,null,null,null,null,null,null,null,null,null,null,null,null,null,null,null,"Sous-total",null,null,null,null,null,null,null,null,{"$f":"SUM(AV54:BC60)","v":0}]
[]
[null,null,null,null,null,null,null,null,null,null,null,null,null,null,null,null,null,null,null,null,null,null,null,null,null,null,null,null,null,null,null,null,null,null,null,null,0.08,null,null,null,"de vacances",null,null,null,null,null,null,{"$f":"ROUND($AV$63*AK65,2)","v":0}]
[]
[null,null,null,null,null,null,null,null,null,null,null,null,null,null,null,null,null,null,null,null,null,null,null,null,null,null,null,null,null,null,null,null,null,null,null,null,0.03,null,null,null,"de congés",null,null,null,null,null,null,{"$f":"ROUND($AV$63*AK67,2)","v":0}]
[]
[null,null,null,null,null,null,null,null,null,null,null,null,null,null,null,null,null,null,null,null,null,null,null,null,null,null,null,null,null,null,null,null,null,null,null,null,3.5999999999999997E-2,null,null,null,"de jours fériés",null,null,null,null,null,null,{"$f":"ROUND($AV$63*AK69,2)","v":0}]
[]
[null,null,null,null,null,null,null,null,null,null,null,null,null,null,null,null,null,null,null,null,null,null,null,null,null,null,null,null,null,null,null,null,null,null,null,null,null,null,null,null,"TOTAL",null,null,null,null,null,null,{"$f":"SUM(AV63:BC69)","v":0}]
[]
[null,null,null,null,null,null,null,null,null,null,"DIMANCHE",null,null,null,null,null,null,null,null,null,null,null,null,"SAMEDI"]
[null,"SEMAINE DU",null,null,null,null,null,null,null,null,null,null,null,null,null,null,null,null,"AU"]
[]
[]
[null,"No Période",null,null,null,null,null,null,"NB.HRES",null,null,null,null,null,"SEM.",null,null,null,null,null,"DIMANCHE",null,null,null,null,null,null,null,null,"LUNDI",null,null,null,null,null,null,null,null,null,"MARDI",null,null,null,null,null,null,null,"MERCREDI",null,null,null,null,null,null,null,null,null,"JEUDI",null,null,null,null,null,null,null,null,null,"VENDREDI",null,null,null,null,null,null,null,null,null,"SAMEDI"]
[null,null,null,null,null,null,null,null,{"$f":"U78+AD78+AN78+AV78+BF78+BP78+BZ78","v":0}]
[]
[]
[null,"TAG",null,null,null,null,"TITRE DU COURS",null,null,null,null,null,null,null,null,null,null,null,null,null,null,null,null,null,null,null,null,null,null,"NO. DU",null,null,null,null,null,"NOMBRE",null,null,null,null,null,"TAUX",null,null,null,null,null,"MONTANT",null,null,null,null,null,null,null,null,null,null,null,null,null,null,null,null,null,null,null,null,null,null,null,null,null,null,null,null,null,"UNITÉ"]
[null,null,null,null,null,null,null,null,null,null,null,null,null,null,null,null,null,null,null,null,null,null,null,null,null,null,null,null,null,"COURS",null,null,null,null,null,"HRES/SEM.",null,null,null,null,null,"HORAIRE",null,null,null,null,null,"TOTAL",null,null,null,null,null,null,null,null,"UBR",null,null,null,null,"COMPTE",null,null,null,null,"FINANCEMENT",null,null,null,null,null,null,"CBS",null,null,null,"ADM.",null,null,"FONDS",null,null,null,"%"]
[]
[null,null,null,null,null,null,null,null,null,null,null,null,null,null,null,null,null,null,null,null,null,null,null,null,null,null,null,null,null,null,null,null,null,null,null,null,null,null,null,null,null,{"$f":"IF(ISNA(VLOOKUP(B84,donnees_Auxiliaires,2,FALSE)),\" \",VLOOKUP(B84,donnees_Auxiliaires,2,FALSE))","v":" "},null,null,null,null,null,{"$f":"IF(AP84=\" \",0,AJ84*AP84)","v":0}]
[]
[null,null,null,null,null,null,null,null,null,null,null,null,null,null,null,null,null,null,null,null,null,null,null,null,null,null,null,null,null,null,null,null,null,null,null,null,null,null,null,null,null,{"$f":"IF(ISNA(VLOOKUP(B86,donnees_Auxiliaires,2,FALSE)),\" \",VLOOKUP(B86,donnees_Auxiliaires,2,FALSE))","v":" "},null,null,null,null,null,{"$f":"IF(AP86=\" \",0,AJ86*AP86)","v":0}]
[]
[null,null,null,null,null,null,null,null,null,null,null,null,null,null,null,null,null,null,null,null,null,null,null,null,null,null,null,null,null,null,null,null,null,null,null,null,null,null,null,null,null,{"$f":"IF(ISNA(VLOOKUP(B88,donnees_Auxiliaires,2,FALSE)),\" \",VLOOKUP(B88,donnees_Auxiliaires,2,FALSE))","v":" "},null,null,null,null,null,{"$f":"IF(AP88=\" \",0,AJ88*AP88)","v":0}]
[]
[null,null,null,null,null,null,null,null,null,null,null,null,null,null,null,null,null,null,null,null,null,null,null,null,null,null,null,null,null,null,null,null,null,null,null,null,null,null,null,null,null,{"$f":"IF(ISNA(VLOOKUP(B90,donnees_Auxiliaires,2,FALSE)),\" \",VLOOKUP(B90,donnees_Auxiliaires,2,FALSE))","v":" "},null,null,null,null,null,{"$f":"IF(AP90=\" \",0,AJ90*AP90)","v":0}]
[null,null,null,null,null,null,null,null,null,null,null,null,null,null,null,null,null,null,null,null,{"$f":"IF(I91=\" \",\" \",I91*O91)","v":0}]
[]
[null,null,null,null,null,null,null,null,null,null,null,null,null,null,null,null,null,null,null,null,null,null,null,null,null,null,null,null,null,null,null,null,null,null,null,null,null,null,"Sous-total",null,null,null,null,null,null,null,null,{"$f":"SUM(AV84:BC90)","v":0}]
[]
[null,null,null,null,null,null,null,null,null,null,null,null,null,null,null,null,null,null,null,null,null,null,null,null,null,null,null,null,null,null,null,null,null,null,null,null,0.08,null,null,null,"de vacances",null,null,null,null,null,null,{"$f":"ROUND($AV$93*AK95,2)","v":0}]
[]
[null,null,null,null,null,null,null,null,null,null,null,null,null,null,null,null,null,null,null,null,null,null,null,null,null,null,null,null,null,null,null,null,null,null,null,null,0.03,null,null,null,"de congés",null,null,null,null,null,null,{"$f":"ROUND($AV$93*AK97,2)","v":0}]
[]
[null,null,null,null,null,null,null,null,null,null,null,null,null,null,null,null,null,null,null,null,null,null,null,null,null,null,null,null,null,null,null,null,null,null,null,null,3.5999999999999997E-2,null,null,null,"de jours fériés",null,null,null,null,null,null,{"$f":"ROUND($AV$93*AK99,2)","v":0}]
[]
[null,null,null,null,null,null,null,null,null,null,null,null,null,null,null,null,null,null,null,null,null,null,null,null,null,null,null,null,null,null,null,null,null,null,null,null,null,null,null,null,"TOTAL",null,null,null,null,null,null,{"$f":"SUM(AV93:BC99)","v":0}]
[]
["REMARQUES:"]
[]
[]
[]
[]
[]
[]
[]
[]
[]
[]
[]
[]
[]
[]
[null,null,null,null,null,null,null,null,null,null,null,null,null,null,null,null,null,null,null,null,null,null,null,null,null,null,null,null,null,null,null,null,null,null,null,null,null,null,null,null,null,null,null,null,null,"SIGNATURE DE L'EMPLOYÉ",null,null,null,null,null,null,null,null,null,null,null,null,null,null,null,null,null,null,null,null,null,null,null,null,null,null,null,null,null,null,null,"DATE"]
[]
[]
[]
[null,"SIGNATURES POUR L'ÉCOLE POLYTECHNIQUE"]
[]
[null,"RESPONSABLE DU COURS/PROJET",null,null,null,null,null,null,null,null,null,null,null,null,null,null,null,null,null,null,null,null,null,null,null,null,null,null,null,null,null,null,null,"DATE",null,null,null,null,null,null,null,null,null,null,null,"DIRECTION DU CENTRE, DÉPARTEMENT, INSTITUT OU SERVICE",null,null,null,null,null,null,null,null,null,null,null,null,null,null,null,null,null,null,null,null,null,null,null,null,null,null,null,null,null,null,null,"DATE"]
[]
[]
[]
[null,"SERVICE DES RESSOURCES HUMAINES",null,null,null,null,null,null,null,null,null,null,null,null,null,null,null,null,null,null,null,null,null,null,null,null,null,null,null,null,null,null,null,"DATE",null,null,null,null,null,null,null,null,null,null,null,"SERVICE DES FINANCES",null,null,null,null,null,null,null,null,null,null,null,null,null,null,null,null,null,null,null,null,null,null,null,null,null,null,null,null,null,null,null,"DATE"]
[]
[]
[]
[null,null,null,null,null,null,null,null,null,null,null,null,null,null,null,null,null,null,null,null,null,null,null,null,null,null,null,null,null,null,null,null,null,null,null,null,null,null,null,null,null,null,null,null,null,null,null,null,null,null,null,null,null,null,null,null,null,null,null,null,null,null,null,null,null,null,null,null,null,null,null,"DR-AUXI",null,null,null,null,null,null,null,"######"]
[null,null,null,null,null,null,null,null,null,null,null,null,null,null,null,null,null,null,null,null,null,null,null,null,null,null,null,null,null,null,null,null,null,null,null,null,null,null,null,null,null,null,null,null,null,null,null,null,null,null,null,null,null,null,null,null,null,null,null,null,null,null,null,null,null,null,null,null,null,null,null,"(19 juin 2017)"]

{"sheet":"Unité de regroupement","index":1,"n_rows":5,"n_cols":1,"rows_kept":5,"cut":false,"hidden":true,"merged":[]}
["AAREP"]
["ACEP"]
["APEP"]
["AUXI"]
["CCTP"]

{"sheet":"Titre d'emploi","index":2,"n_rows":4,"n_cols":8,"rows_kept":4,"cut":false,"hidden":true,"merged":[]}
["Auxiliaires de recherche","Étudiant au 1er cycle : Indemnité de vacances de 6% (TAG : 1070)",1070,16.12,1.29,0.48,0.57999999999999996,18.47]
["Auxiliaires de recherche","Nouveau diplômé B. Ing. : Indemnité de vacances de 6% (TAG : 1071)",1071,17.95,1.44,0.54,0.65,20.57]
["Auxiliaires de recherche","Étudiant au 2e cycle : Indemnité de vacances de 6% (TAG : 1072)",1072,22.03,1.76,0.66,0.79,25.24]
["Auxiliaires de recherche","Étudiant au 3e cycle : Indemnité de vacances de 6% (TAG : 1073)",1073,23.86,1.91,0.72,0.86,27.34]